fUST/lending_fUST_20240619
["ID","MTS","AMOUNT","RATE_DAILY","PERIOD"]
[329851264,1718753438807,-500.0,0.0001724,2]
[329851265,1718753438817,-500.0,0.0001724,2]
[329851266,1718753438827,-126.61496002,0.0001724,2]
[329851267,1718753438841,-373.38503998,0.0001724,2]
[329851268,1718753438853,-500.0,0.0001724,2]
[329851269,1718753438863,-275.33996502,0.0001724,2]
[329851270,1718753438876,-224.66003498,0.0001724,2]
[329851271,1718753438887,-500.0,0.0001724,2]
[329851272,1718753438896,-364.79596622,0.0001724,2]
[329851273,1718753438910,-135.20403378,0.0001724,2]
[329851274,1718753438920,-500.0,0.0001724,2]
[329851275,1718753438931,-445.03596587,0.0001724,2]
[329851276,1718753438944,-166.07769133,0.0001724,2]
[329851277,1718753438954,-190.86110562,0.0001724,2]
[329851278,1718753438968,-309.13889438,0.0001724,2]
[329851279,1718753438979,-500.0,0.0001724,2]
[329851280,1718753438990,-500.0,0.00017241,2]
[329851281,1718753439000,-1438.88,0.00017241,2]
[329851282,1718753439011,-500.0,0.00017243,2]
[329851283,1718753439022,-500.0,0.00017243,2]
[329851284,1718753439034,-340.53032008,0.00017243,2]
[329851288,1718753441064,-159.46967992,0.00017243,2]
[329851289,1718753441076,-500.0,0.00017243,2]
[329851290,1718753441087,-340.08465722,0.00017243,2]
[329851291,1718753441099,-2125.84,0.00017243,2]
[329851292,1718753441110,-500.0,0.00017243,2]
[329851293,1718753441121,-292.46719692,0.00017243,2]
[329851294,1718753441132,-228.7624113,0.00017243,2]
[329851295,1718753441299,-382.5175887,0.00017243,2]
[329851296,1718753441317,-500.0,0.00017243,2]
[329851297,1718753441328,-211.67054739,0.00017243,2]
[329851298,1718753441341,-288.32945261,0.00017243,2]
[329851299,1718753441350,-500.0,0.00017243,2]
[329851300,1718753441360,-500.0,0.00017243,2]
[329851301,1718753441370,-500.0,0.00017243,2]
[329851302,1718753441380,-500.0,0.00017243,2]
[329851303,1718753441389,-500.0,0.00017243,2]
[329851304,1718753441399,-500.0,0.00017243,2]
[329851305,1718753441410,-500.0,0.00017243,2]
[329851306,1718753441419,-500.0,0.00017243,2]
[329851307,1718753441430,-578.67,0.00017243,2]
[329851308,1718753441440,-500.0,0.00017243,2]
[329851309,1718753441449,-500.0,0.00017243,2]
[329851310,1718753441459,-415.75723587,0.00017243,2]
[329851311,1718753441469,-200.21540642,0.00017243,2]
[329851312,1718753441478,-565.54,0.00017514,2]
[329851313,1718753441488,-500.0,0.00017514,2]
[329851314,1718753441498,-500.0,0.00017514,2]
[329851315,1718753441507,-1438.88,0.00017515,2]
[329851316,1718753441516,-500.0,0.00017516,2]
[329851317,1718753441526,-363.04508795,0.00017517,2]
[329851318,1718753441536,-2125.84,0.00017517,2]
[329851319,1718753441545,-500.0,0.00017517,2]
[329851320,1718753441556,-500.0,0.00017517,2]
[329851321,1718753441567,-500.0,0.00017517,2]
[329851322,1718753441575,-565.54,0.00017788,2]
[329851323,1718753441585,-500.0,0.00017788,2]
[329851324,1718753441594,-500.0,0.00017788,2]
[329851325,1718753441604,-1438.88,0.00017789,2]
[329851326,1718753441613,-500.0,0.0001779,2]
[329851327,1718753441623,-500.0,0.0001779,2]
[329851328,1718753441633,-500.0,0.0001779,2]
[329851329,1718753441642,-500.0,0.0001779,2]
[329851330,1718753441651,-2125.84,0.00017791,2]
[329851331,1718753441660,-500.0,0.00017791,2]
[329851332,1718753441670,-500.0,0.00017791,2]
[329851333,1718753441679,-500.0,0.00017791,2]
[329851334,1718753441689,-565.54,0.00018062,2]
[329851335,1718753441698,-500.0,0.00018062,2]
[329851336,1718753441708,-500.0,0.00018062,2]
[329851337,1718753441717,-1438.88,0.00018063,2]
[329851338,1718753441727,-500.0,0.00018064,2]
[329851339,1718753441736,-500.0,0.00018064,2]
[329851340,1718753441746,-2125.84,0.00018065,2]
[329851341,1718753441755,-500.0,0.00018065,2]
[329851342,1718753441765,-500.0,0.00018065,2]
[329851343,1718753441774,-500.0,0.00018065,2]
[329851344,1718753441783,-565.54,0.00018336,2]
[329851345,1718753441792,-500.0,0.00018336,2]
[329851346,1718753441804,-1438.88,0.00018337,2]
[329851347,1718753441813,-500.0,0.00018338,2]
[329851348,1718753441823,-500.0,0.00018338,2]
[329851349,1718753441833,-2125.84,0.00018339,2]
[329851350,1718753441842,-500.0,0.00018339,2]
[329851351,1718753441851,-500.0,0.00018339,2]
[329851352,1718753441866,-500.0,0.00018339,2]
[329851353,1718753441875,-183.70797062,0.00018513,2]
[329851354,1718753441890,-565.54,0.0001861,2]
[329851355,1718753441899,-500.0,0.0001861,2]
[329851356,1718753441909,-1438.88,0.00018611,2]
[329851357,1718753441919,-475.09827682,0.00018612,2]
[329851358,1718753441928,-500.0,0.00018612,2]
[329851359,1718753441937,-2125.84,0.00018613,2]
[329851360,1718753441947,-500.0,0.00018613,2]
[329851361,1718753441956,-500.0,0.00018613,2]
[329851362,1718753441966,-500.0,0.00018613,2]
[329851363,1718753441976,-565.54,0.00018884,2]
[329851364,1718753441985,-500.0,0.00018884,2]
[329851365,1718753441994,-1438.88,0.00018885,2]
[329851366,1718753442004,-235.3026276,0.00018886,2]
[329851367,1718753442014,-500.0,0.00018886,2]
[329851368,1718753442023,-2125.84,0.00018887,2]
[329851369,1718753442033,-500.0,0.00018887,2]
[329851370,1718753442043,-500.0,0.00018887,2]
[329851371,1718753442054,-500.0,0.00018887,2]
[329851372,1718753442064,-288.354604,0.00019096,2]
[329851373,1718753442073,-565.54,0.00019158,2]
[329851374,1718753442082,-356.88747241,0.00019158,2]
[329851413,1718753444010,-0.00223734,0.00019158,2]
[329851433,1718753516070,259.39180364,9.999e-05,2]
[329851434,1718753516093,113.8519599,9.999e-05,2]
[329851435,1718753611454,150.81901718,0.00020115,30]
[329851436,1718753611506,150.81901718,0.00019713,120]
[329851446,1718753840421,150.83408251,0.00020311,30]
[329851447,1718753840485,150.83408251,0.00019905,120]
[329851457,1718754217011,150.83408251,0.00020349,30]
[329851458,1718754369985,3123.2011782,9.999e-05,4]
[329851459,1718754425268,-705.58178986,0.00016287,2]
[329851460,1718754425288,-240.12086796,0.00016387,4]
[329851461,1718754425308,-1469.76860185,0.00016389,2]
[329851462,1718754425461,-2813.78598013,0.0001639,2]
[329851463,1718754425481,-300.0,0.0001639,2]
[329851464,1718754425501,-300.0,0.0001639,2]
[329851465,1718754425522,-3011.02408611,0.00016391,2]
[329851466,1718754426184,-1100.34175773,0.00016391,2]
[329851467,1718754432105,-666.16654136,0.00016391,2]
[329851468,1718754433088,-563.96190286,0.00016391,2]
[329851469,1718754453100,-156.36793466,0.00016391,2]
[329851470,1718754546121,-596.0422309,0.0001609,2]
[329851471,1718754574998,155.70941146,0.00016099,2]
[329851472,1718754575018,10.83501654,0.00016099,2]
[329851473,1718754589684,147.89016278,0.00016099,2]
[329851474,1718754589705,223.55154447,0.00016099,2]
[329851475,1718754591715,-344.01102783,0.00016099,2]
[329851539,1718754637957,-4426.83189203,0.00016099,2]
[329851541,1718754637969,-1867.55795404,0.00016099,2]
[329851548,1718754640506,-970.96025475,0.00016099,2]
[329851549,1718754640517,-417.40885111,0.00016387,4]
[329851550,1718754640528,-300.0,0.00016388,2]
[329851552,1718754640538,-427.51372666,0.00016389,2]
[329851553,1718754640549,-186.70857767,0.00016389,2]
[329851554,1718754640561,-416.04516079,0.00016389,2]
[329851555,1718754640572,-192.05032732,0.00016389,2]
[329851556,1718754640584,-41.75537481,0.00016389,2]
[329851557,1718754640595,-156.91379928,0.0001639,2]
[329851558,1718754640604,-194.49883543,0.00016391,2]
[329851559,1718754640614,-154.87609912,0.00017241,2]
[329851560,1718754640624,-167.34783622,0.00017242,2]
[329851561,1718754640634,-500.0,0.00017243,2]
[329851562,1718754640644,-500.0,0.00017243,2]
[329851563,1718754640654,-506.47373511,0.00017243,2]
[329851564,1718754640668,-500.0,0.00017243,2]
[329851565,1718754640678,-500.0,0.00017243,2]
[329851566,1718754640688,-505.68429365,0.00017243,2]
[329851567,1718754640699,-521.35966754,0.00017243,2]
[329851568,1718754640709,-509.74812083,0.00017243,2]
[329851569,1718754640718,-180.47696669,0.00017243,2]
[329851570,1718754640728,-500.0,0.00017243,2]
[329851571,1718754640740,-847.0539371,0.00017416,2]
[329851572,1718754640751,-500.98711381,0.00017516,2]
[329851573,1718754640760,-500.0,0.00017516,2]
[329851574,1718754640770,-1343.97,0.00017516,2]
[329851575,1718754640779,-500.0,0.00017516,2]
[329851576,1718754640789,-500.0,0.00017517,2]
[329851577,1718754640799,-559.04170556,0.00017789,2]
[329851578,1718754640809,-500.0,0.00017789,2]
[329851579,1718754640819,-500.0,0.00017789,2]
[329851580,1718754640828,-500.0,0.00017789,2]
[329851581,1718754640838,-500.0,0.00017789,2]
[329851582,1718754640848,-500.0,0.00017789,2]
[329851583,1718754640857,-500.0,0.00017789,2]
[329851584,1718754640867,-500.0,0.00017789,2]
[329851585,1718754640878,-500.0,0.00017789,2]
[329851586,1718754640887,-198.93827089,0.00017789,2]
[329851587,1718754640896,-500.0,0.00017789,2]
[329851588,1718754640906,-500.0,0.00017789,2]
[329851589,1718754640915,-500.0,0.00017789,2]
[329851590,1718754640924,-500.0,0.00017789,2]
[329851591,1718754640934,-500.0,0.00017789,2]
[329851592,1718754640944,-500.0,0.00017789,2]
[329851593,1718754640954,-505.66132269,0.00017789,2]
[329851594,1718754640963,-500.0,0.00017789,2]
[329851595,1718754640973,-500.0,0.00017789,2]
[329851596,1718754640983,-244.67949,0.00017789,2]
[329851597,1718754640992,-500.0,0.00017789,2]
[329851598,1718754641002,-1609.97,0.00017789,2]
[329851599,1718754641012,-500.0,0.0001779,2]
[329851600,1718754641022,-460.67601343,0.0001779,2]
[329851601,1718754641035,-39.32398657,0.0001779,2]
[329851602,1718754641044,-490.36577234,0.0001779,2]
[329851630,1718754643012,-500.0,0.00017789,2]
[329851631,1718754643022,-9.63422766,0.0001779,2]
[329851632,1718754643031,-500.0,0.0001779,2]
[329851633,1718754643041,-504.869443,0.0001779,2]
[329851634,1718754643050,-156.83363757,0.0001779,2]
[329851646,1718755418586,17307.68043722,9.999e-05,2]
[329851653,1718755634121,-158.72517932,0.00016097,2]
[329851654,1718755634141,-217.08116025,0.00016097,2]
[329851655,1718755634162,-223.55154447,0.00016097,2]
[329851656,1718755634183,-39.13648212,0.00016097,2]
[329851657,1718755636143,-646.90568582,0.00016097,2]
[329851658,1718755636164,-287.00138393,0.00016097,2]
[329851659,1718755637108,-99.93602608,0.00016097,2]
[329851660,1718755637129,-300.0,0.00016098,2]
[329851661,1718755637149,-351.81561628,0.00016099,2]
[329851662,1718755639143,-4674.85262419,0.00016099,2]
[329851663,1718755642288,-604.01857026,0.00016099,2]
[329851664,1718755746108,-154.82968734,0.00016097,2]
[329851665,1718755746130,-290.73417627,0.00016098,2]
[329851666,1718755751118,-9.26582373,0.00016098,2]
[329851667,1718755751142,-12559.21366326,0.00016099,2]
[329851668,1718755751165,-200.8382153,0.0001611,2]
[329851669,1718755757811,-295.14380453,0.00016301,2]
[329851703,1718755832220,-548.64484757,0.00016301,2]
[329851706,1718755832231,-5271.96670823,0.00017371,2]
[329851709,1718755832240,-150.0,0.00017534,2]
[329851711,1718755832250,-907.02956948,0.00017688,2]
[329851713,1718755832260,-182.62791403,0.00017689,2]
[329851715,1718755832269,-500.0,0.00017788,2]
[329851717,1718755832282,-500.0,0.00017788,2]
[329851719,1718755832294,-500.0,0.00017788,2]
[329851721,1718755832303,-500.0,0.00017788,2]
[329851723,1718755832313,-500.0,0.00017788,2]
[329851725,1718755832322,-500.0,0.00017788,2]
[329851727,1718755832332,-500.0,0.00017788,2]
[329851729,1718755832342,-361.74842265,0.00017788,2]
[329851731,1718755832351,-507.69431826,0.00017788,2]
[329851733,1718755832361,-500.0,0.00017788,2]
[329851735,1718755832370,-500.0,0.00017788,2]
[329851737,1718755832379,-500.0,0.00017788,2]
[329851739,1718755832388,-500.0,0.00017788,2]
[329851741,1718755832398,-500.0,0.00017788,2]
[329851743,1718755832407,-500.0,0.00017788,2]
[329851745,1718755832417,-500.0,0.00017788,2]
[329851747,1718755832426,-500.0,0.00017788,2]
[329851749,1718755832435,-678.86,0.00017788,2]
[329851751,1718755832444,-500.0,0.00017788,2]
[329851753,1718755832453,-1945.7,0.00017788,2]
[329851755,1718755832462,-500.0,0.00017788,2]
[329851756,1718755832471,-500.0,0.00017788,2]
[329851758,1718755832480,-500.0,0.00017788,2]
[329851760,1718755832489,-609.57,0.00017788,2]
[329851762,1718755832498,-500.0,0.00017788,2]
[329851764,1718755832507,-500.0,0.00017788,2]
[329851766,1718755832516,-500.0,0.00017788,2]
[329851768,1718755832526,-500.0,0.00017788,2]
[329851770,1718755832535,-500.0,0.00017788,2]
[329851772,1718755832546,-500.0,0.00017788,2]
[329851774,1718755832555,-500.0,0.00017788,2]
[329851776,1718755832564,-500.0,0.00017788,2]
[329851778,1718755832573,-500.0,0.00017788,2]
[329851780,1718755832582,-500.0,0.00017788,2]
[329851783,1718755832593,-500.0,0.00017788,2]
[329851784,1718755832602,-500.0,0.00017788,2]
[329851787,1718755832612,-500.0,0.00017788,2]
[329851788,1718755832621,-500.0,0.00017788,2]
[329851791,1718755832631,-500.0,0.00017788,2]
[329851792,1718755832641,-500.0,0.00017788,2]
[329851794,1718755832650,-500.0,0.00017788,2]
[329851796,1718755832658,-231.26,0.00017788,2]
[329851798,1718755832667,-500.0,0.00017788,2]
[329851800,1718755832676,-500.0,0.00017788,2]
[329851803,1718755832687,-395.29920855,0.00017788,2]
[329851924,1718755838232,-436.84778693,0.00017787,2]
[329852543,1718756831123,-250.0,0.00016788,2]
[329852544,1718756831144,-295.13346272,0.00017313,2]
[329852545,1718756831172,-915.97858484,0.00017313,2]
[329852546,1718756848104,-754.81903917,0.00017313,2]
[329852547,1718756850120,-1584.56891327,0.00017313,2]
[329852548,1718756850142,-272.7344237,0.00017786,2]
[329852549,1718756850162,-157.08146106,0.00017786,2]
[329852550,1718756850184,-300.0,0.00017786,2]
[329852551,1718756850203,-251.75164236,0.00017787,2]
[329852552,1718756850225,-558.44,0.00017787,2]
[329852553,1718756850245,-363.8231379,0.00017787,2]
[329852554,1718756850265,-500.0,0.00017787,2]
[329852555,1718756850289,-500.0,0.00017787,2]
[329852556,1718756850310,-500.0,0.00017787,2]
[329852557,1718756850333,-567.28,0.00017787,2]
[329852558,1718756850355,-500.0,0.00017787,2]
[329852559,1718756850378,-500.0,0.00017787,2]
[329852560,1718756850399,-500.0,0.00017787,2]
[329852561,1718756850419,-500.0,0.00017787,2]
[329852562,1718756850445,-500.0,0.00017787,2]
[329852563,1718756850466,-500.0,0.00017787,2]
[329852564,1718756850487,-500.0,0.00017787,2]
[329852565,1718756850512,-184.31,0.00017787,2]
[329852566,1718756850537,-500.0,0.00017787,2]
[329852567,1718756850561,-1872.21,0.00017787,2]
[329852568,1718756850583,-632.37,0.00017787,2]
[329852569,1718756850604,-500.0,0.00017787,2]
[329852570,1718756850625,-123.56011062,0.00017787,2]
[329852603,1718757038293,-2434.8383755,0.00017071,2]
[329852604,1718757038303,-793.65087333,0.00017687,2]
[329852605,1718757038313,-178.0,0.00017786,2]
[329852606,1718757038323,-376.43988938,0.00017787,2]
[329852607,1718757038333,-500.0,0.00017787,2]
[329852608,1718757038343,-500.0,0.00017787,2]
[329852609,1718757038352,-500.0,0.00017787,2]
[329852610,1718757038362,-341.62379647,0.00017787,2]
[329852611,1718757038371,-27451.2,0.00017787,2]
[329852612,1718757038381,-500.0,0.00017787,2]
[329852613,1718757038390,-150.58206987,0.00017787,2]
[329852614,1718757038400,-500.0,0.00017787,2]
[329852615,1718757038409,-218.62314558,0.00017787,2]
[329852616,1718757038418,-500.0,0.00017787,2]
[329852617,1718757038426,-500.0,0.00017787,2]
[329852618,1718757038436,-500.0,0.00017787,2]
[329852619,1718757038446,-500.0,0.00017787,2]
[329852620,1718757038455,-500.0,0.00017787,2]
[329852621,1718757038464,-451.45390027,0.00017787,2]
[329852622,1718757038474,-500.0,0.00017787,2]
[329852623,1718757038483,-500.0,0.00017787,2]
[329852624,1718757038493,-167.76977723,0.00017787,2]
[329852625,1718757038503,-500.0,0.00017787,2]
[329852626,1718757038520,-500.0,0.00017787,2]
[329852627,1718757038529,-259.39180364,0.00017788,2]
[329852628,1718757038539,-500.0,0.00017788,2]
[329852629,1718757038548,-500.0,0.00017788,2]
[329852630,1718757038559,-501.29613711,0.00017788,2]
[329852631,1718757038569,-578.12233334,0.00017788,2]
[329852632,1718757038579,-500.0,0.00017788,2]
[329852633,1718757038588,-355.13848899,0.00017788,2]
[329852634,1718757038597,-505.6549058,0.00017788,2]
[329852635,1718757038607,-500.0,0.00017788,2]
[329852636,1718757038616,-500.0,0.00017788,2]
[329852637,1718757038625,-500.0,0.00017788,2]
[329852638,1718757038635,-250.0,0.00017788,2]
[329852639,1718757038645,-500.0,0.00017788,2]
[329852640,1718757038656,-620.3865162,0.00017788,2]
[329852641,1718757038666,-345.7646152,0.00017788,2]
[329852642,1718757038674,-529.20045716,0.00017788,2]
[329852643,1718757038683,-313.89081301,0.00017788,2]
[329852644,1718757038693,-500.0,0.00017788,2]
[329852645,1718757038703,-500.0,0.00017788,2]
[329852646,1718757038713,-500.0,0.00017788,2]
[329852647,1718757038722,-500.0,0.00017788,2]
[329852648,1718757038732,-500.0,0.00017788,2]
[329852649,1718757038742,-614.57330518,0.00017788,2]
[329852650,1718757038878,-500.0,0.00017788,2]
[329852651,1718757038888,-500.0,0.00017788,2]
[329852652,1718757038898,-500.0,0.00017788,2]
[329852653,1718757038908,-500.0,0.00017788,2]
[329852654,1718757038917,-500.0,0.00017788,2]
[329852655,1718757038926,-500.0,0.00017788,2]
[329852656,1718757038935,-500.0,0.00017788,2]
[329852657,1718757038945,-500.0,0.00017788,2]
[329852658,1718757038955,-500.0,0.0001806,2]
[329852659,1718757038964,-244.31,0.00018061,2]
[329852660,1718757038973,-1872.21,0.00018061,2]
[329852661,1718757038982,-632.37,0.00018061,2]
[329852662,1718757038991,-500.0,0.00018061,2]
[329852663,1718757039000,-500.0,0.00018061,2]
[329852664,1718757039010,-27451.2,0.00018061,2]
[329852665,1718757039019,-581.5,0.00018061,2]
[329852666,1718757039028,-500.0,0.00018061,2]
[329852667,1718757039037,-500.0,0.00018061,2]
[329852668,1718757039047,-500.0,0.00018061,2]
[329852669,1718757039056,-604.70079145,0.00018061,2]
[329852670,1718757039065,-500.0,0.00018061,2]
[329852671,1718757039074,-500.0,0.00018061,2]
[329852672,1718757039083,-500.0,0.00018062,2]
[329852673,1718757039093,-500.0,0.00018062,2]
[329852674,1718757039103,-151.261544,0.00018062,2]
[329852675,1718757039113,-252.12399232,0.00018062,2]
[329852676,1718757039122,-500.0,0.00018062,2]
[329852677,1718757039132,-151.0,0.00018062,2]
[329852678,1718757039141,-593.67704719,0.00018062,2]
[329852679,1718757039152,-250.0,0.00018062,2]
[329852680,1718757039161,-293.48197379,0.00018062,2]
[329852681,1718757039170,-500.0,0.00018062,2]
[329852682,1718757039179,-151.0,0.00018062,2]
[329852683,1718757039189,-459.72248286,0.00018062,2]
[329852684,1718757039199,-152.293039,0.00018062,2]
[329852685,1718757039208,-151.0,0.00018062,2]
[329852686,1718757039217,-151.0,0.00018062,2]
[329852687,1718757039227,-151.0,0.00018062,2]
[329852688,1718757039236,-151.286273,0.00018062,2]
[329852689,1718757039245,-500.0,0.00018062,2]
[329852690,1718757039255,-377.52520107,0.00018062,2]
[329852691,1718757039264,-152.772268,0.00018062,2]
[329852692,1718757039274,-151.0,0.00018062,2]
[329852693,1718757039283,-151.0,0.00018062,2]
[329852694,1718757039292,-183.59276837,0.00018062,2]
[329852695,1718757039301,-151.0,0.00018062,2]
[329852696,1718757039310,-1000.0,0.00018062,2]
[329852697,1718757039319,-1000.0,0.00018062,2]
[329852698,1718757039328,-894.917311,0.00018062,2]
[329852699,1718757039338,-151.0,0.00018062,2]
[329852700,1718757039349,-151.213074,0.00018062,2]
[329852701,1718757039358,-500.0,0.00018062,2]
[329852702,1718757039367,-151.0,0.00018062,2]
[329852703,1718757039377,-151.0,0.00018062,2]
[329852704,1718757039386,-287.684324,0.00018062,2]
[329852705,1718757039396,-151.0,0.00018062,2]
[329852706,1718757039407,-347.434064,0.00018062,2]
[329852707,1718757039416,-347.434064,0.00018062,2]
[329852708,1718757039426,-182.62791402,0.000181,2]
[329852709,1718757039435,-5345.49947541,0.000182,2]
[329852710,1718757039444,-151.436971,0.000182,2]
[329852711,1718757039454,-151.0,0.000182,2]
[329852712,1718757039463,-151.0,0.000182,2]
[329852713,1718757039473,-151.0,0.000182,2]
[329852714,1718757039483,-154.922508,0.000182,2]
[329852715,1718757039493,-151.0,0.000182,2]
[329852716,1718757039509,-151.0,0.000182,2]
[329852717,1718757039518,-151.0,0.000182,2]
[329852718,1718757039528,-151.0,0.000182,2]
[329852719,1718757039539,-286.930812,0.000182,2]
[329852720,1718757039550,-286.930812,0.000182,2]
[329852721,1718757039559,-151.0,0.000182,2]
[329852722,1718757039569,-151.0,0.000182,2]
[329852723,1718757039580,-151.0,0.000182,2]
[329852724,1718757039591,-151.0,0.000182,2]
[329852725,1718757039601,-347.434064,0.000182,2]
[329852726,1718757039611,-347.434064,0.000182,2]
[329852727,1718757039621,-361.78,0.00018334,2]
[329852728,1718757039631,-151.0,0.00018335,2]
[329852729,1718757039641,-151.0,0.00018335,2]
[329852730,1718757039652,-151.0,0.00018335,2]
[329852731,1718757039662,-151.0,0.00018335,2]
[329852732,1718757039672,-155.013052,0.00018335,2]
[329852733,1718757039682,-156.075696,0.00018335,2]
[329852734,1718757039692,-151.0,0.00018335,2]
[329852735,1718757039702,-151.0,0.00018335,2]
[329852736,1718757039712,-1872.21,0.00018335,2]
[329852737,1718757039721,-151.0,0.00018335,2]
[329852738,1718757039732,-286.930812,0.00018335,2]
[329852739,1718757039743,-286.930812,0.00018335,2]
[329852740,1718757039752,-632.37,0.00018335,2]
[329852741,1718757039762,-500.0,0.00018335,2]
[329852742,1718757039772,-1416.88,0.00018335,2]
[329852743,1718757039783,-500.0,0.00018335,2]
[329852744,1718757039792,-27451.2,0.00018335,2]
[329852745,1718757039803,-151.0,0.00018335,2]
[329852746,1718757039812,-500.0,0.00018335,2]
[329852747,1718757039822,-153.597451,0.00018335,2]
[329852748,1718757039832,-500.0,0.00018335,2]
[329852749,1718757039842,-500.0,0.00018335,2]
[329852750,1718757039851,-500.0,0.00018335,2]
[329852751,1718757039862,-347.434064,0.00018335,2]
[329852752,1718757039872,-347.434064,0.00018335,2]
[329852753,1718757039882,-347.434064,0.00018335,2]
[329852754,1718757039892,-347.434064,0.00018335,2]
[329852755,1718757039904,-500.0,0.00018336,2]
[329852756,1718757039914,-182.62791402,0.0001851,2]
[329852757,1718757039924,-151.0,0.00018609,2]
[329852758,1718757039934,-151.0,0.00018609,2]
[329852759,1718757039944,-151.0,0.00018609,2]
[329852760,1718757039954,-151.0,0.00018609,2]
[329852761,1718757039964,-151.0,0.00018609,2]
[329852762,1718757039974,-1872.21,0.00018609,2]
[329852763,1718757039984,-151.0,0.00018609,2]
[329852764,1718757039994,-286.930812,0.00018609,2]
[329852765,1718757040005,-286.930812,0.00018609,2]
[329852766,1718757040016,-286.930812,0.00018609,2]
[329852768,1718757040026,-286.930812,0.00018609,2]
[329852770,1718757040036,-632.37,0.00018609,2]
[329852772,1718757040046,-500.0,0.00018609,2]
[329852774,1718757040056,-1416.88,0.00018609,2]
[329852776,1718757040066,-500.0,0.00018609,2]
[329852777,1718757040076,-27451.2,0.00018609,2]
[329852778,1718757040086,-151.0,0.00018609,2]
[329852779,1718757040096,-151.0,0.00018609,2]
[329852780,1718757040106,-500.0,0.00018609,2]
[329852781,1718757040115,-500.0,0.00018609,2]
[329852782,1718757040124,-500.0,0.00018609,2]
[329852783,1718757040136,-347.434064,0.00018609,2]
[329852784,1718757040147,-347.434064,0.00018609,2]
[329852785,1718757040161,-347.434064,0.00018609,2]
[329852786,1718757040170,-347.434064,0.00018609,2]
[329852787,1718757040180,-540.67,0.0001861,2]
[329852788,1718757040189,-199.81885678,0.00018883,15]
[329852789,1718757040199,-151.0,0.00018883,2]
[329852790,1718757040208,-151.0,0.00018883,2]
[329852791,1718757040217,-1872.21,0.00018883,2]
[329852792,1718757040227,-286.930812,0.00018883,2]
[329852793,1718757040236,-286.930812,0.00018883,2]
[329852794,1718757040246,-632.37,0.00018883,2]
[329852795,1718757040256,-500.0,0.00018883,2]
[329852796,1718757040265,-1416.88,0.00018883,2]
[329852797,1718757040275,-500.0,0.00018883,2]
[329852798,1718757040284,-27451.2,0.00018883,2]
[329852799,1718757040294,-177.002806,0.00018883,2]
[329852800,1718757040303,-500.0,0.00018883,2]
[329852801,1718757040313,-500.0,0.00018883,2]
[329852802,1718757040323,-500.0,0.00018883,2]
[329852803,1718757040333,-347.434064,0.00018883,2]
[329852804,1718757040343,-347.434064,0.00018883,2]
[329852805,1718757040353,-311.70771541,0.000189,2]
[329852806,1718757040364,-153.0,0.00018905,2]
[329852807,1718757040374,-182.62791402,0.00018921,2]
[329852808,1718757040384,-156.09569436,0.00018966,3]
[329852809,1718757040394,-810.06405385,0.00019,3]
[329852810,1718757040407,-31907.21732781,0.00019091,2]
[329852811,1718757040416,-151.0,0.00019091,2]
[329852812,1718757040425,-151.0,0.00019091,2]
[329852813,1718757040434,-286.930812,0.00019091,2]
[329852814,1718757040444,-286.930812,0.00019091,2]
[329852815,1718757040454,-347.434064,0.00019091,2]